fUST/lending_fUST_20260324
["ID","MTS","AMOUNT","RATE_DAILY","PERIOD"]
[408830843,1774337448278,-2030.41474399,0.00018901,2]
[408830881,1774338632016,-364.95219621,0.00011757,2]
[408831041,1774338637987,-684.23268755,0.00011757,2]
[408831042,1774338638026,-2022.38299121,0.00011757,2]
[408831043,1774338638041,-1928.43212503,0.00011757,2]
[408831044,1774338638055,-1552.22531037,0.00011876,2]
[408831045,1774338638067,-589.0,0.00011996,2]
[408831047,1774338638081,-1200.0,0.00012997,2]
[408831050,1774338638094,-300.0,0.00012999,2]
[408831052,1774338638105,-300.0,0.00012999,2]
[408831054,1774338638116,-300.0,0.00012999,2]
[408831055,1774338638127,-2000.0,0.00013,2]
[408831056,1774338638145,-638.56846174,0.00013,2]
[408831057,1774338638157,-500.0,0.00013424,2]
[408831058,1774338638170,-500.0,0.00013424,2]
[408831059,1774338638183,-190.8240554,0.00013424,2]
[408831060,1774338638194,-209.19754444,0.00013599,2]
[408831061,1774338638206,-152.76355866,0.00013697,2]
[408831062,1774338638218,-500.0,0.00013697,2]
[408831063,1774338638229,-500.0,0.00013697,2]
[408831064,1774338638240,-500.0,0.00013697,2]
[408831065,1774338638250,-500.0,0.00013697,2]
[408831066,1774338638260,-500.0,0.00013697,2]
[408831067,1774338638270,-374.3222534,0.00013697,2]
[408831068,1774338638281,-500.0,0.00013697,2]
[408831069,1774338638291,-430.66693509,0.00013697,2]
[408831070,1774338638302,-500.0,0.00013697,2]
[408831071,1774338638313,-500.0,0.00013697,2]
[408831072,1774338638324,-500.0,0.00013697,2]
[408831073,1774338638335,-500.0,0.00013697,2]
[408831074,1774338638348,-500.0,0.00013697,2]
[408831075,1774338638361,-191.55784748,0.00013697,2]
[408831076,1774338638371,-500.0,0.00013697,2]
[408831077,1774338638381,-500.0,0.00013697,2]
[408831078,1774338638395,-500.0,0.00013697,2]
[408831079,1774338638407,-500.0,0.00013697,2]
[408831080,1774338638419,-500.0,0.00013697,2]
[408831081,1774338638431,-500.0,0.00013697,2]
[408831082,1774338638443,-500.0,0.00013697,2]
[408831083,1774338638454,-500.0,0.00013697,2]
[408831084,1774338638464,-500.0,0.00013697,2]
[408831085,1774338638474,-500.0,0.00013697,2]
[408831086,1774338638484,-500.0,0.00013697,2]
[408831087,1774338638494,-500.0,0.00013697,2]
[408831088,1774338638504,-500.0,0.00013697,2]
[408831089,1774338638515,-500.0,0.00013697,2]
[408831090,1774338638525,-500.0,0.00013697,2]
[408831091,1774338638538,-500.0,0.00013697,2]
[408831092,1774338638551,-500.0,0.00013697,2]
[408831093,1774338638563,-500.0,0.00013697,2]
[408831094,1774338638576,-500.0,0.00013697,2]
[408831095,1774338638586,-500.0,0.00013697,2]
[408831096,1774338638595,-500.0,0.00013697,2]
[408831097,1774338638606,-500.0,0.00013697,2]
[408831098,1774338638618,-500.0,0.00013697,2]
[408831099,1774338638629,-428.5561134,0.00013697,2]
[408831100,1774338638641,-500.0,0.00013697,2]
[408831101,1774338638653,-500.0,0.00013697,2]
[408831102,1774338638663,-402.3317035,0.00013697,2]
[408831103,1774338638674,-500.0,0.00013697,2]
[408831104,1774338638684,-500.0,0.00013697,2]
[408831105,1774338638695,-500.0,0.00013697,2]
[408831106,1774338638705,-500.0,0.00013697,2]
[408831107,1774338638717,-500.0,0.00013697,2]
[408831108,1774338638727,-500.0,0.00013697,2]
[408831109,1774338638738,-230.95067927,0.00013697,2]
[408831110,1774338638748,-500.0,0.00013697,2]
[408831111,1774338638762,-1016.69,0.00013698,2]
[408831112,1774338638772,-1016.69,0.00013698,2]
[408831113,1774338638783,-1016.69,0.00013698,2]
[408831114,1774338638794,-1016.69,0.00013698,2]
[408831115,1774338638807,-780.27600864,0.00013698,2]
[408831116,1774338638821,-236.41399136,0.00013698,2]
[408831117,1774338638832,-500.0,0.00013698,2]
[408831118,1774338638842,-500.0,0.00013698,2]
[408831119,1774338638853,-500.0,0.00013698,2]
[408831120,1774338638863,-500.0,0.00013698,2]
[408831121,1774338638874,-500.0,0.00013698,2]
[408831122,1774338638884,-500.0,0.00013698,2]
[408831123,1774338638894,-500.0,0.00013698,2]
[408831124,1774338638905,-500.0,0.00013698,2]
[408831125,1774338638915,-500.0,0.00013698,2]
[408831126,1774338638925,-500.0,0.00013698,2]
[408831127,1774338638935,-2100.22,0.00013698,2]
[408831128,1774338638945,-2100.22,0.00013698,2]
[408831129,1774338638956,-2100.22,0.00013698,2]
[408831130,1774338638966,-2100.22,0.00013698,2]
[408831131,1774338638976,-2100.22,0.00013698,2]
[408831132,1774338638987,-500.0,0.00013698,2]
[408831133,1774338638997,-500.0,0.00013698,2]
[408831134,1774338639009,-500.0,0.00013698,2]
[408831135,1774338639020,-500.0,0.00013698,2]
[408831136,1774338639030,-500.0,0.00013698,2]
[408831137,1774338639041,-1300.55,0.00013698,2]
[408831138,1774338639053,-1300.55,0.00013698,2]
[408831139,1774338639064,-531.15,0.00013698,2]
[408831140,1774338639074,-531.15,0.00013698,2]
[408831141,1774338639085,-500.98260368,0.00013698,2]
[408831142,1774338639095,-1615.23,0.00013698,2]
[408831143,1774338639105,-1615.23,0.00013698,2]
[408831144,1774338639116,-1615.23,0.00013698,2]
[408831145,1774338639127,-1615.23,0.00013698,2]
[408831146,1774338639137,-1615.23,0.00013698,2]
[408831147,1774338639148,-641.52,0.00013698,2]
[408831148,1774338639158,-641.52,0.00013698,2]
[408831149,1774338639169,-641.52,0.00013698,2]
[408831150,1774338639180,-641.52,0.00013698,2]
[408831151,1774338639191,-641.52,0.00013698,2]
[408831152,1774338639201,-500.0,0.00013698,2]
[408831153,1774338639212,-500.0,0.00013698,2]
[408831154,1774338639222,-500.0,0.00013698,2]
[408831155,1774338639232,-500.0,0.00013698,2]
[408831156,1774338639242,-500.0,0.00013698,2]
[408831157,1774338639253,-500.0,0.00013698,2]
[408831158,1774338639263,-500.0,0.00013698,2]
[408831159,1774338639273,-2187.69,0.00013698,2]
[408831160,1774338639284,-2187.69,0.00013698,2]
[408831161,1774338639294,-2187.69,0.00013698,2]
[408831162,1774338639309,-2187.69,0.00013698,2]
[408831163,1774338639321,-2187.69,0.00013698,2]
[408831164,1774338639332,-500.0,0.00013698,2]
[408831165,1774338639344,-500.0,0.00013698,2]
[408831166,1774338639358,-500.0,0.00013698,2]
[408831167,1774338639369,-500.0,0.00013698,2]
[408831168,1774338639380,-500.0,0.00013698,2]
[408831169,1774338639392,-155.59866815,0.00013698,2]
[408831170,1774338639402,-724.99,0.00013698,2]
[408831171,1774338639413,-724.99,0.00013698,2]
[408831172,1774338639425,-724.99,0.00013698,2]
[408831173,1774338639436,-724.99,0.00013698,2]
[408831174,1774338639447,-656.25,0.00013698,2]
[408831175,1774338639457,-656.25,0.00013698,2]
[408831176,1774338639467,-656.25,0.00013698,2]
[408831177,1774338639479,-656.25,0.00013698,2]
[408831178,1774338639490,-656.25,0.00013698,2]
[408831179,1774338639502,-1006.63,0.00013698,2]
[408831180,1774338639514,-1006.63,0.00013698,2]
[408831181,1774338639525,-764.22,0.00013698,2]
[408831182,1774338639536,-764.22,0.00013698,2]
[408831183,1774338639547,-764.22,0.00013698,2]
[408831184,1774338639558,-764.22,0.00013698,2]
[408831185,1774338639570,-764.22,0.00013698,2]
[408831186,1774338639581,-151.0,0.00013698,2]
[408831188,1774338639592,-151.0,0.00013698,2]
[408831189,1774338639603,-180.556003,0.00013698,2]
[408831190,1774338639614,-500.0,0.00013698,2]
[408831191,1774338639625,-500.0,0.00013698,2]
[408831192,1774338639636,-500.0,0.00013698,2]
[408831193,1774338639647,-500.0,0.00013698,2]
[408831194,1774338639658,-500.0,0.00013698,2]
[408831195,1774338639668,-500.0,0.00013698,2]
[408831196,1774338639677,-500.0,0.00013698,2]
[408831197,1774338639687,-500.0,0.00013698,2]
[408831201,1774338639911,-1000.0,0.00013699,2]
[408831202,1774338639927,-724.99,0.00013893,2]
[408831203,1774338639937,-500.0,0.00013972,2]
[408831204,1774338639947,-500.0,0.00014246,2]
[408831205,1774338639956,-420.0,0.00014255,2]
[408831206,1774338639965,-1680.0,0.00014297,2]
[408831207,1774338639974,-1006.63,0.00014322,2]
[408831208,1774338639983,-1016.69,0.00014323,2]
[408831209,1774338639993,-500.0,0.00014323,2]
[408831210,1774338640002,-335.60103635,0.00014323,2]
[408831211,1774338640012,-2100.22,0.00014323,2]
[408831212,1774338640022,-500.0,0.00014323,2]
[408831213,1774338640031,-1615.23,0.00014323,2]
[408831214,1774338640041,-641.52,0.00014323,2]
[408831215,1774338640050,-500.0,0.00014323,2]
[408831216,1774338640060,-2187.69,0.00014323,2]
[408831217,1774338640069,-500.0,0.00014323,2]
[408831218,1774338640078,-656.25,0.00014323,2]
[408831219,1774338640088,-764.22,0.00014323,2]
[408831220,1774338640097,-151.0,0.00014323,2]
[408831221,1774338640106,-151.0,0.00014323,2]
[408831222,1774338640116,-500.0,0.00014323,2]
[408831223,1774338640126,-1006.63,0.00014498,2]
[408831224,1774338640135,-1300.55,0.00014499,2]
[408831225,1774338640144,-1300.55,0.00014499,2]
[408831226,1774338640153,-531.15,0.00014499,2]
[408831227,1774338640162,-531.15,0.00014499,2]
[408831228,1774338640171,-1006.63,0.00014499,2]
[408831229,1774338640181,-442.18408093,0.00014499,2]
[408831230,1774338640190,-225.97034998,0.00014499,2]
[408831231,1774338640199,-292.9923791,0.00014499,2]
[408831232,1774338640210,-869.48839504,0.00014499,2]
[408831233,1774338640219,-869.48839504,0.00014499,2]
[408831234,1774338640228,-869.48839504,0.00014499,2]
[408831235,1774338640237,-869.48839504,0.00014499,2]
[408831236,1774338640246,-869.48839504,0.00014499,2]
[408831237,1774338640255,-869.48839504,0.00014499,2]
[408831238,1774338640264,-869.48839504,0.00014499,2]
[408831239,1774338640273,-869.48839504,0.00014499,2]
[408831240,1774338640282,-869.48839504,0.00014499,2]
[408831241,1774338640291,-869.48839504,0.00014499,2]
[408831242,1774338640300,-869.48839504,0.00014499,2]
[408831243,1774338640311,-869.48839504,0.00014499,2]
[408831244,1774338640320,-500.0,0.00014499,2]
[408831245,1774338640329,-500.0,0.00014499,2]
[408831246,1774338640338,-886.87816293,0.00014499,2]
[408831247,1774338640351,-886.87816293,0.00014499,2]
[408831248,1774338640361,-886.87816293,0.00014499,2]
[408831249,1774338640371,-886.87816293,0.00014499,2]
[408831250,1774338640381,-886.87816293,0.00014499,2]
[408831251,1774338640391,-886.87816293,0.00014499,2]
[408831252,1774338640402,-886.87816293,0.00014499,2]
[408831253,1774338640412,-886.87816293,0.00014499,2]
[408831254,1774338640424,-886.87816293,0.00014499,2]
[408831255,1774338640433,-886.87816293,0.00014499,2]
[408831256,1774338640442,-892.15719961,0.00014499,2]
[408831257,1774338640452,-892.15719961,0.00014499,2]
[408831258,1774338640462,-892.15719961,0.00014499,2]
[408831259,1774338640471,-892.15719961,0.00014499,2]
[408831260,1774338640481,-892.15719961,0.00014499,2]
[408831261,1774338640490,-892.15719961,0.00014499,2]
[408831262,1774338640499,-892.15719961,0.00014499,2]
[408831263,1774338640508,-20000.0,0.000145,2]
[408831264,1774338640518,-10000.0,0.000145,2]
[408831265,1774338640528,-2532.09245669,0.000145,2]
[408831266,1774338640537,-151.0,0.000145,2]
[408831268,1774338640546,-151.0,0.000145,2]
[408831269,1774338640557,-500.0,0.0001452,2]
[408831270,1774338640567,-1006.63,0.00014599,2]
[408831271,1774338640577,-1000.0,0.000146,2]
[408831272,1774338640586,-1000.0,0.000146,2]
[408831273,1774338640595,-1000.0,0.000146,2]
[408831274,1774338640604,-1000.0,0.000146,2]
[408831275,1774338640614,-1000.0,0.000146,2]
[408831276,1774338640623,-500.0,0.00014794,2]
[408831277,1774338640633,-151.0,0.00014797,2]
[408831278,1774338640642,-151.0,0.00014797,2]
[408831279,1774338640651,-1300.55,0.00014798,2]
[408831280,1774338640661,-531.15,0.00014798,2]
[408831281,1774338640670,-500.0,0.00014798,2]
[408831282,1774338640679,-10000.0,0.000148,2]
[408831283,1774338640688,-151.0,0.000149,2]
[408831284,1774338640698,-1300.55,0.00014999,2]
[408831285,1774338640707,-531.15,0.00014999,2]
[408831286,1774338640716,-1006.63,0.00014999,2]
[408831287,1774338640726,-500.0,0.00014999,2]
[408831288,1774338640739,-10000.0,0.00015,2]
[408831289,1774338640749,-10000.0,0.00015,2]
[408831290,1774338640758,-151.0,0.00015,2]
[408831291,1774338640768,-151.0,0.00015,2]
[408831292,1774338640778,-1006.63,0.00015008,2]
[408831293,1774338640787,-1300.55,0.00015009,2]
[408831294,1774338640797,-531.15,0.00015009,2]
[408831295,1774338640807,-500.0,0.00015009,2]
[408831296,1774338640816,-500.0,0.00015068,2]
[408831297,1774338640825,-1006.63,0.00015173,2]
[408831298,1774338640834,-1006.63,0.00015227,2]
[408831299,1774338640843,-1300.55,0.00015284,2]
[408831300,1774338640853,-531.15,0.00015284,2]
[408831301,1774338640862,-500.0,0.00015284,2]
[408831302,1774338640871,-200.0,0.00015299,2]
[408831303,1774338640880,-1006.63,0.00015299,2]
[408831304,1774338640890,-10000.0,0.000153,2]
[408831305,1774338640899,-500.0,0.00015342,2]
[408831306,1774338640908,-445.202766,0.00015384,2]
[408831307,1774338640917,-151.72942493,0.00015384,2]
[408831308,1774338640926,-170.04107487,0.00015384,2]
[408831309,1774338640935,-163.10758848,0.00015384,2]
[408831310,1774338640944,-1957.856,0.00015384,2]
[408831311,1774338640953,-162.380719,0.00015384,2]
[408831312,1774338640962,-537.6845,0.00015384,2]
[408831313,1774338640971,-168.3888056,0.00015384,2]
[408831314,1774338640980,-174.61919141,0.00015384,2]
[408831315,1774338640990,-181.08010149,0.00015384,2]
[408831316,1774338640999,-187.78006525,0.00015384,2]
[408831317,1774338641008,-194.72792766,0.00015384,2]
[408831318,1774338641018,-201.93286099,0.00015384,2]
[408831319,1774338641027,-209.40437684,0.00015384,2]
[408831320,1774338641039,-158.24302297,0.00015384,2]
[408831321,1774338641053,-217.15233878,0.00015384,2]
[408831322,1774338641064,-225.18697532,0.00015384,2]
[408831323,1774338641076,-233.51889341,0.00015384,2]
[408831324,1774338641093,-242.15909246,0.00015384,2]
[408831325,1774338641102,-251.11897888,0.00015384,2]
[408831326,1774338641111,-260.4103811,0.00015384,2]
[408831327,1774338641120,-270.0455652,0.00015384,2]
[408831328,1774338641129,-206.26667879,0.00015384,2]
[408831329,1774338641138,-537.6845,0.00015384,2]
[408831330,1774338641147,-2150.738,0.00015384,2]
[408831331,1774338641157,-151.0,0.000154,2]
[408831332,1774338641166,-2030.296672,0.00015439,2]
[408831333,1774338641175,-557.5788265,0.00015439,2]
[408831334,1774338641185,-1300.55,0.00015449,2]
[408831335,1774338641194,-531.15,0.00015449,2]
[408831336,1774338641204,-1006.63,0.00015449,2]
[408831337,1774338641214,-500.0,0.00015449,2]
[408831338,1774338641223,-2105.41764886,0.00015494,2]
[408831339,1774338641232,-578.20924308,0.00015494,2]
[408831340,1774338641242,-1300.55,0.00015499,2]
[408831341,1774338641252,-531.15,0.00015499,2]
[408831342,1774338641267,-200.0,0.00015499,2]
[408831343,1774338641277,-1006.63,0.00015499,2]
[408831344,1774338641286,-500.0,0.00015499,2]
[408831345,1774338641295,-20000.0,0.000155,2]
[408831346,1774338641304,-151.0,0.000155,2]
[408831347,1774338641315,-2183.31810187,0.00015549,2]
[408831348,1774338641324,-599.60298507,0.00015549,2]
[408831349,1774338641334,-2532.09245667,0.00015575,2]
[408831350,1774338641344,-1281.298914,0.00015602,2]
[408831351,1774338641357,-2264.10087164,0.00015604,2]
[408831352,1774338641366,-621.78829552,0.00015604,2]
[408831353,1774338641375,-1006.63,0.00015615,2]
[408831354,1774338641384,-1006.63,0.00015615,2]
[408831355,1774338641394,-200.0,0.00015615,2]
[408831356,1774338641404,-7378.51140452,0.00015616,2]
[408831357,1774338641413,-5000.0,0.00015616,2]
[408831358,1774338641424,-5000.0,0.00015616,2]
[408831359,1774338641434,-5000.0,0.00015616,2]
[408831360,1774338641443,-5000.0,0.00015616,2]
[408831361,1774338641454,-587.0,0.00015633,2]
[408831362,1774338641463,-724.99,0.00015649,2]
[408831363,1774338641472,-2347.87260389,0.00015659,2]
[408831364,1774338641482,-644.79446246,0.00015659,2]
[408831365,1774338641491,-1300.55,0.00015668,2]
[408831366,1774338641500,-531.15,0.00015668,2]
[408831367,1774338641509,-500.0,0.00015668,2]
[408831368,1774338641519,-502.81629011,0.0001567,2]
[408831369,1774338641529,-2434.74389024,0.00015714,2]
[408831370,1774338641538,-668.65185757,0.00015714,2]
[408831371,1774338641548,-421.0,0.00015726,2]
[408831372,1774338641558,-500.0,0.0001575,2]
[408831373,1774338641568,-2524.82941417,0.00015769,2]
[408831374,1774338641577,-693.3919763,0.00015769,2]
[408831375,1774338641587,-1006.63,0.00015799,2]
[408831376,1774338641596,-201.75950812,0.00015799,2]
[408831377,1774338641605,-10000.0,0.000158,2]
[408831378,1774338641614,-500.0,0.00015802,2]
[408831379,1774338641623,-500.4097529,0.00015805,2]
[408831380,1774338641632,-2618.2481025,0.00015824,2]
[408831381,1774338641642,-719.04747942,0.00015824,2]
[408831382,1774338641652,-500.0,0.00015834,2]
[408831383,1774338641662,-362.25854438,0.00015851,2]
[408831384,1774338641671,-2715.12328229,0.00015879,2]
[408831385,1774338641681,-745.65223616,0.00015879,2]
[408831386,1774338641692,-151.0,0.000159,2]
[408831387,1774338641701,-151.0,0.000159,2]
[408831388,1774338641710,-1300.55,0.00015919,2]
[408831389,1774338641720,-531.15,0.00015919,2]
[408831390,1774338641730,-500.0,0.00015919,2]
[408831391,1774338641740,-1016.69,0.0001592,2]
[408831392,1774338641751,-500.0,0.0001592,2]
[408831393,1774338641760,-2100.22,0.0001592,2]
[408831394,1774338641769,-500.0,0.0001592,2]
[408831395,1774338641778,-1615.23,0.0001592,2]
[408831396,1774338641787,-641.52,0.0001592,2]
[408831397,1774338641796,-500.0,0.0001592,2]
[408831398,1774338641805,-2187.69,0.0001592,2]
[408831399,1774338641815,-500.0,0.0001592,2]
[408831400,1774338641824,-656.25,0.0001592,2]
[408831401,1774338641834,-764.22,0.0001592,2]
[408831402,1774338641843,-500.0,0.0001592,2]
[408831403,1774338641853,-461.67526834,0.00015932,2]
[408831404,1774338641862,-557.5788265,0.00015932,2]
[408831405,1774338641871,-2230.315306,0.00015932,2]
[408831406,1774338641882,-2815.58284374,0.00015934,2]
[408831407,1774338641892,-773.2413689,0.00015934,2]
[408831408,1774338641902,-2919.75940895,0.00015989,2]
[408831409,1774338641913,-801.85129955,0.00015989,2]
[408831410,1774338641922,-2514.35036549,0.00016044,2]
[408831411,1774338641933,-831.51979763,0.00016044,2]
[408831412,1774338641942,-862.28603014,0.00016099,2]
[408831413,1774338641952,-151.0,0.000161,2]
[408831414,1774338641962,-162.320286,0.00016106,7]
[408831415,1774338641971,-231.886124,0.0001611,7]
[408831416,1774338641981,-245.859682,0.0001611,7]
[408831417,1774338641990,-221.217046,0.0001611,7]
[408831418,1774338642000,-894.19061326,0.00016154,2]
[408831419,1774338642010,-927.27566595,0.00016209,2]
[408831420,1774338642020,-1006.63,0.00016238,2]
[408831421,1774338642029,-1300.55,0.00016251,2]
[408831422,1774338642039,-531.15,0.00016251,2]
[408831423,1774338642048,-724.99,0.00016251,2]
[408831424,1774338642058,-500.0,0.00016251,2]
[408831425,1774338642067,-724.99,0.00016252,2]
[408831426,1774338642076,-961.58486559,0.00016264,2]
[408831427,1774338642086,-1000.0,0.00016298,2]
[408831428,1774338642098,-151.0,0.000163,2]
[408831429,1774338642108,-1000.0,0.0001635,2]
[408831430,1774338642119,-1000.0,0.00016382,2]
[408831431,1774338642128,-151.0,0.000164,2]
[408831432,1774338642137,-1016.69,0.00016435,2]
[408831433,1774338642147,-500.0,0.00016435,2]
[408831434,1774338642156,-2100.22,0.00016435,2]
[408831435,1774338642165,-222.3166629,0.00016435,2]
[408831436,1774338642175,-1615.23,0.00016435,2]
[408831437,1774338642184,-641.52,0.00016435,2]
[408831438,1774338642193,-500.0,0.00016435,2]
[408831439,1774338642203,-2187.69,0.00016435,2]
[408831440,1774338642212,-500.0,0.00016435,2]
[408831441,1774338642221,-656.25,0.00016435,2]
[408831442,1774338642231,-764.22,0.00016435,2]
[408831443,1774338642241,-500.0,0.00016435,2]
[408831444,1774338642250,-1300.55,0.00016437,2]
[408831445,1774338642260,-1300.55,0.00016437,2]
[408831446,1774338642269,-531.15,0.00016437,2]
[408831447,1774338642279,-531.15,0.00016437,2]
[408831448,1774338642289,-1006.63,0.00016437,2]
[408831449,1774338642299,-1006.63,0.00016437,2]
[408831450,1774338642310,-500.0,0.00016437,2]
[408831451,1774338642320,-500.0,0.00016437,2]
[408831452,1774338642330,-1016.69,0.00016438,2]
[408831453,1774338642340,-1016.69,0.00016438,2]
[408831454,1774338642352,-1016.69,0.00016438,2]
[408831455,1774338642362,-1016.69,0.00016438,2]
[408831456,1774338642372,-1016.69,0.00016438,2]
[408831457,1774338642382,-1016.69,0.00016438,2]
[408831458,1774338642392,-500.0,0.00016438,2]
[408831459,1774338642401,-500.0,0.00016438,2]
[408831460,1774338642411,-500.0,0.00016438,2]
[408831461,1774338642421,-500.0,0.00016438,2]
[408831462,1774338642430,-500.0,0.00016438,2]
[408831463,1774338642441,-500.0,0.00016438,2]
[408831464,1774338642450,-2100.22,0.00016438,2]
[408831465,1774338642460,-2100.22,0.00016438,2]
[408831466,1774338642469,-2100.22,0.00016438,2]
[408831467,1774338642479,-2100.22,0.00016438,2]
[408831468,1774338642488,-2100.22,0.00016438,2]
[408831469,1774338642498,-2100.22,0.00016438,2]
[408831470,1774338642509,-1300.55,0.00016438,2]
[408831471,1774338642519,-1300.55,0.00016438,2]
[408831472,1774338642528,-531.15,0.00016438,2]
[408831473,1774338642538,-531.15,0.00016438,2]
[408831474,1774338642548,-1615.23,0.00016438,2]
[408831475,1774338642557,-1615.23,0.00016438,2]
[408831476,1774338642567,-1615.23,0.00016438,2]
[408831477,1774338642577,-1615.23,0.00016438,2]
[408831478,1774338642587,-1615.23,0.00016438,2]
[408831479,1774338642596,-1615.23,0.00016438,2]
[408831480,1774338642606,-641.52,0.00016438,2]
[408831481,1774338642616,-641.52,0.00016438,2]
[408831482,1774338642625,-641.52,0.00016438,2]
[408831483,1774338642635,-641.52,0.00016438,2]
[408831484,1774338642645,-641.52,0.00016438,2]
[408831485,1774338642655,-641.52,0.00016438,2]
[408831486,1774338642664,-500.0,0.00016438,2]
[408831488,1774338642674,-500.0,0.00016438,2]
[408831489,1774338642684,-500.0,0.00016438,2]
[408831491,1774338642694,-500.0,0.00016438,2]
[408831492,1774338642704,-500.0,0.00016438,2]
[408831493,1774338642714,-500.0,0.00016438,2]
[408831494,1774338642724,-2187.69,0.00016438,2]
[408831495,1774338642734,-2187.69,0.00016438,2]
[408831496,1774338642743,-2187.69,0.00016438,2]
[408831497,1774338642753,-2187.69,0.00016438,2]
[408831498,1774338642762,-2187.69,0.00016438,2]
[408831499,1774338642771,-2187.69,0.00016438,2]
[408831500,1774338642780,-500.0,0.00016438,2]
[408831501,1774338642790,-500.0,0.00016438,2]
[408831502,1774338642800,-500.0,0.00016438,2]
[408831503,1774338642810,-500.0,0.00016438,2]
[408831504,1774338642819,-500.0,0.00016438,2]
[408831505,1774338642829,-500.0,0.00016438,2]
[408831506,1774338642839,-724.99,0.00016438,2]
[408831507,1774338642848,-724.99,0.00016438,2]
[408831508,1774338642858,-724.99,0.00016438,2]
[408831509,1774338642869,-724.99,0.00016438,2]
[408831510,1774338642878,-724.99,0.00016438,2]
[408831511,1774338642888,-724.99,0.00016438,2]
[408831512,1774338642898,-656.25,0.00016438,2]
[408831513,1774338642908,-656.25,0.00016438,2]
[408831514,1774338642917,-656.25,0.00016438,2]
[408831515,1774338642927,-656.25,0.00016438,2]
[408831516,1774338642937,-656.25,0.00016438,2]
[408831517,1774338642947,-656.25,0.00016438,2]
[408831518,1774338642957,-1006.63,0.00016438,2]
[408831519,1774338642966,-1006.63,0.00016438,2]
[408831520,1774338642976,-1006.63,0.00016438,2]
[408831521,1774338642985,-1006.63,0.00016438,2]
[408831522,1774338642995,-1006.65018177,0.00016438,2]
[408831523,1774338643005,-764.22,0.00016438,2]
[408831524,1774338643015,-764.22,0.00016438,2]
[408831525,1774338643024,-764.22,0.00016438,2]
[408831526,1774338643033,-764.22,0.00016438,2]
[408831527,1774338643044,-764.22,0.00016438,2]
[408831528,1774338643054,-764.22,0.00016438,2]
[408831529,1774338643064,-179.32309931,0.00016438,2]
[408831530,1774338643073,-500.0,0.00016438,2]
[408831531,1774338643082,-500.0,0.00016438,2]
[408831532,1774338643091,-500.0,0.00016438,2]
[408831533,1774338643101,-500.0,0.00016438,2]
[408831534,1774338643110,-500.0,0.00016438,2]
[408831537,1774338643254,-500.0,0.00016438,2]
[408831538,1774338643265,-232.30645952,0.00016438,2]
[408831539,1774338643275,-301.16498,0.00016438,2]
[408831540,1774338643284,-151.0,0.00016438,2]
[408831541,1774338643294,-151.0,0.00016438,2]
[408831542,1774338643303,-151.0,0.00016438,2]
[408831543,1774338643314,-151.0,0.00016438,2]
[408831544,1774338643325,-151.0,0.00016438,2]
[408831545,1774338643334,-162.402389,0.00016438,2]
[408831546,1774338643346,-151.0,0.00016438,2]
[408831547,1774338643356,-151.0,0.00016438,2]
[408831548,1774338643365,-151.0,0.00016438,2]
[408831549,1774338643374,-151.0,0.00016438,2]
[408831550,1774338643384,-151.0,0.00016438,2]
[408831551,1774338643394,-151.0,0.00016438,2]
[408831552,1774338643403,-151.0,0.00016438,2]